bitfinex/quotes_BTCUSD_20251217
["timestamp","ask_amount","ask_price","bid_price","bid_amount"]
[1765993398500,0.00235744,86686.0,86685.0,0.69144]
[1765993399539,0.00235744,86686.0,86666.0,0.69144]
[1765993399735,0.01153655,86681.0,86667.0,0.01532001]
[1765993399964,0.24228263,86676.0,86667.0,0.01693001]
[1765993400159,0.01153735,86675.0,86667.0,0.01693001]
[1765993400422,0.24229249,86673.0,86666.0,0.01832]
[1765993400786,0.24229249,86673.0,86658.0,0.69144]
[1765993400787,0.01153775,86672.0,86661.0,0.01832]
[1765993400996,0.01153801,86670.0,86661.0,0.01832]
[1765993401208,0.24229623,86671.0,86661.0,0.01832]
[1765993401413,0.23076299,86670.0,86661.0,0.01832]
[1765993401623,0.24230508,86668.0,86666.0,0.001]
[1765993401833,0.01153841,86667.0,86666.0,0.001]
[1765993402045,0.33300447,86668.0,86666.0,0.001]
[1765993402271,0.23076834,86667.0,86666.0,0.001]
[1765993402891,0.01153855,86666.0,86661.0,0.70976]
[1765993403105,0.01153868,86665.0,86661.0,0.70976]
[1765993403347,0.24231621,86664.0,86661.0,0.01832]
[1765993403558,0.01153868,86665.0,86661.0,0.01832]
[1765993403768,0.10223815,86669.0,86666.0,0.001]
[1765993403932,0.33300174,86669.0,86666.0,0.001]
[1765993404096,0.01153828,86668.0,86661.0,0.01832]
[1765993404301,0.0907,86669.0,86661.0,0.01932]
[1765993404689,0.0907,86670.0,86661.0,0.01832]
[1765993404922,0.00175485,86667.0,86661.0,0.01832]
[1765993405134,0.10223788,86671.0,86661.0,0.01832]
[1765993405661,0.0907,86671.0,86661.0,0.01832]
[1765993405980,0.01153801,86670.0,86661.0,0.70976]
[1765993406182,0.33299608,86671.0,86661.0,0.70976]
[1765993406304,0.0907,86675.0,86661.0,0.70976]
[1765993406517,0.24230727,86667.0,86661.0,0.01832]
[1765993406726,0.01153855,86666.0,86661.0,0.01832]
[1765993406930,0.01153855,86666.0,86654.0,0.69144]
[1765993407388,0.01153868,86665.0,86654.0,0.69144]
[1765993407836,0.2423105,86666.0,86661.0,0.001]
[1765993408052,0.01153868,86665.0,86661.0,0.001]
[1765993408261,0.10223788,86671.0,86661.0,0.69244]
[1765993408419,0.01153788,86671.0,86661.0,0.69405]
[1765993408636,0.24229523,86672.0,86661.0,0.69405]
[1765993408849,0.01153761,86673.0,86661.0,0.69405]
[1765993409048,0.01153788,86671.0,86661.0,0.69305]
[1765993409250,0.24229305,86672.0,86661.0,0.69305]
[1765993409454,0.24229305,86672.0,86661.0,0.78005]
[1765993409733,0.01153801,86670.0,86661.0,0.78005]
[1765993409906,0.01153828,86668.0,86661.0,0.78005]
[1765993410091,0.24230149,86669.0,86661.0,0.78005]
[1765993410275,0.00159624,86662.0,86661.0,0.78005]
[1765993410874,0.00159624,86662.0,86661.0,0.69305]
[1765993411885,0.00159624,86662.0,86661.0,0.00161]
[1765993412284,0.24230603,86669.0,86661.0,0.00161]
[1765993412502,0.24229852,86670.0,86661.0,0.00161]
[1765993412709,0.01153815,86669.0,86661.0,0.00161]
[1765993412908,0.23075436,86673.0,86660.0,0.67902488]
[1765993413228,0.03084458,86704.0,86648.0,0.01832]
[1765993413229,0.24233137,86659.0,86648.0,0.01832]
[1765993413427,0.70920831,86670.0,86649.0,0.01844157]
[1765993413428,0.01153801,86670.0,86649.0,0.01844157]
[1765993413640,0.23077685,86664.0,86650.0,0.07546]
[1765993413959,0.24232095,86662.0,86650.0,0.07546]
[1765993414386,0.23078114,86663.0,86650.0,0.07546]
[1765993414716,0.23077437,86665.0,86650.0,0.07546]
[1765993414717,0.23077636,86664.0,86650.0,0.07546]
[1765993414894,0.01153921,86661.0,86650.0,0.07546]
[1765993415098,0.01153921,86661.0,86644.0,0.01832]
[1765993415099,0.01153921,86661.0,86651.0,0.69144]
[1765993415233,0.01153934,86660.0,86651.0,0.69144]
[1765993415854,0.01153908,86662.0,86651.0,0.69144]
[1765993416095,0.01153921,86661.0,86651.0,0.69144]
[1765993416526,0.01153894,86663.0,86651.0,0.69144]
[1765993416680,0.01153868,86665.0,86651.0,0.69144]
[1765993416863,0.35131601,86671.0,86651.0,0.69144]
[1765993417071,0.09231287,86669.0,86651.0,0.69144]
[1765993417292,0.00161287,86669.0,86651.0,0.69144]
[1765993417538,0.09231287,86669.0,86651.0,0.69144]
[1765993417782,0.01153894,86663.0,86651.0,0.69144]
[1765993417985,0.24231519,86664.0,86651.0,0.69144]
[1765993418193,0.23078154,86663.0,86651.0,0.69144]
[1765993418397,0.24231519,86664.0,86651.0,0.69144]
[1765993418597,0.23079497,86657.0,86651.0,0.69144]
[1765993418821,0.01153961,86658.0,86651.0,0.69144]
[1765993419092,0.01153961,86658.0,86651.0,0.67641376]
[1765993419504,0.01315248,86658.0,86651.0,0.67641376]
[1765993419708,0.00161287,86658.0,86651.0,0.67641376]
[1765993420928,0.01153894,86663.0,86651.0,0.00161287]
[1765993421149,0.23078397,86662.0,86652.0,0.73092]
[1765993421403,0.01153948,86659.0,86652.0,0.73092]
[1765993421538,0.01153934,86660.0,86652.0,0.73092]
[1765993421738,0.2307867,86662.0,86652.0,0.73092]
[1765993421952,0.01153921,86661.0,86652.0,0.73092]
[1765993422148,0.24232578,86662.0,86652.0,0.73092]
[1765993422724,0.01153894,86663.0,86652.0,0.73092]
[1765993422943,0.23077908,86663.0,86652.0,0.73092]
[1765993423143,0.24231802,86663.0,86652.0,0.73092]
[1765993423343,0.01153881,86664.0,86652.0,0.73092]
[1765993423562,0.23078133,86663.0,86652.0,0.73092]
[1765993423892,0.01153908,86662.0,86652.0,0.73253287]
[1765993424134,0.01153921,86661.0,86652.0,0.73253287]
[1765993424610,0.24232329,86662.0,86652.0,0.73253287]
[1765993424908,0.24232858,86660.0,86652.0,0.73253287]
[1765993425139,0.01153934,86660.0,86652.0,0.73253287]
[1765993425388,0.01154001,86655.0,86652.0,0.11713505]
[1765993425589,0.01153961,86658.0,86600.0,0.0002]
[1765993425590,0.01154507,86617.0,86600.0,0.0002]
[1765993425738,0.01154414,86624.0,86601.0,0.00161287]
[1765993425941,0.01154467,86620.0,86602.0,0.01832]
[1765993426237,0.01154441,86622.0,86602.0,0.01832]
[1765993426441,0.01154374,86627.0,86602.0,0.01832]
[1765993426442,0.23089615,86620.0,86602.0,0.01993287]
[1765993426630,0.01154574,86612.0,86602.0,0.01993287]
[1765993426831,0.01154534,86615.0,86602.0,0.01993287]
[1765993427287,0.01154547,86614.0,86602.0,0.01993287]
[1765993427444,0.01154534,86615.0,86602.0,0.01993287]
[1765993427647,0.24245096,86616.0,86602.0,0.01993287]
[1765993427849,0.01154494,86618.0,86603.0,0.59761]
[1765993428049,0.01154494,86618.0,86602.0,0.00161287]
[1765993428050,0.01154574,86612.0,86602.0,0.00161287]
[1765993428221,0.01154614,86609.0,86602.0,0.00161287]
[1765993428629,0.01154587,86611.0,86602.0,0.00161287]
[1765993428823,0.01154614,86609.0,86602.0,0.00161287]
[1765993429240,0.01154601,86610.0,86602.0,0.00261287]
[1765993429437,0.01154614,86609.0,86602.0,0.00261287]
[1765993429848,0.24246689,86610.0,86602.0,0.00261287]
[1765993430227,0.24246425,86611.0,86602.0,0.00161287]
[1765993430630,0.24246425,86611.0,86602.0,0.00261287]
[1765993430831,0.01154627,86608.0,86602.0,0.00261287]
[1765993430990,0.01154667,86605.0,86602.0,0.001]
[1765993431422,0.24247933,86606.0,86604.0,0.00123873]
[1765993431745,0.01154667,86605.0,86600.0,0.0002]
[1765993431948,0.01154614,86609.0,86600.0,0.0002]
[1765993432093,0.2424709,86609.0,86600.0,0.0002]
[1765993432295,0.01154614,86609.0,86600.0,0.0002]
[1765993432608,0.01154574,86612.0,86600.0,0.0002]
[1765993432795,0.01154534,86615.0,86600.0,0.00181287]
[1765993432995,0.01154587,86611.0,86600.0,0.00181287]
[1765993433231,0.24245574,86614.0,86600.0,0.00281287]
[1765993433447,0.01154587,86611.0,86600.0,0.00181287]
[1765993433652,0.01154654,86606.0,86600.0,0.00181287]
[1765993434154,0.2309257,86608.0,86600.0,0.00181287]
[1765993434155,0.24247197,86608.0,86600.0,0.00181287]
[1765993434296,0.01154601,86610.0,86600.0,0.00181287]
[1765993434500,0.23091754,86612.0,86600.0,0.00181287]
[1765993434753,0.01154601,86610.0,86600.0,0.00181287]
[1765993434932,0.01154614,86609.0,86600.0,0.00181287]
[1765993435141,0.24246607,86611.0,86600.0,0.00181287]
[1765993435377,0.01154574,86612.0,86600.0,0.00181287]
[1765993435556,0.01154547,86614.0,86600.0,0.00181287]
[1765993435710,0.01154494,86618.0,86600.0,0.59942287]
[1765993435912,0.01836,86615.0,86600.0,0.60042287]
[1765993436353,0.01154547,86614.0,86600.0,0.60042287]
[1765993436599,0.01836,86615.0,86600.0,0.60042287]
[1765993436890,0.01836,86615.0,86605.0,0.00120696]
[1765993437051,0.02990534,86615.0,86600.0,0.59942287]
[1765993437593,0.01154534,86615.0,86600.0,0.59942287]
[1765993437805,0.01154561,86613.0,86600.0,0.59942287]
[1765993438345,0.01154574,86612.0,86600.0,0.59942287]
[1765993438553,0.01154547,86614.0,86600.0,0.59942287]
[1765993438955,0.01154561,86613.0,86600.0,0.59942287]
[1765993439160,0.01836,86615.0,86600.0,0.59942287]
[1765993439377,0.02990534,86615.0,86600.0,0.59942287]
[1765993439574,0.01154521,86616.0,86600.0,0.59942287]
[1765993439775,0.01154547,86614.0,86600.0,0.59942287]
[1765993440208,0.24245697,86614.0,86600.0,0.59942287]
[1765993440413,0.01154534,86615.0,86600.0,0.59942287]
[1765993440637,0.01154574,86612.0,86600.0,0.59942287]
[1765993440831,0.23092288,86609.0,86600.0,0.59942287]
[1765993441043,0.01154587,86611.0,86600.0,0.59942287]
[1765993441216,0.24246199,86612.0,86600.0,0.59942287]
[1765993441421,0.01154601,86610.0,86600.0,0.59942287]
[1765993441847,0.01154614,86609.0,86600.0,0.59942287]
[1765993442081,0.24247181,86608.0,86600.0,0.60042287]
[1765993442375,0.24247181,86608.0,86600.0,0.59942287]
[1765993442591,0.01154641,86607.0,86600.0,0.59942287]
[1765993442811,0.01154641,86607.0,86600.0,0.00281287]
[1765993443037,0.01154627,86608.0,86592.0,0.59761]
[1765993443255,0.50964,86608.0,86592.0,0.59761]
[1765993443476,0.24248386,86604.0,86592.0,0.59761]
[1765993443693,0.01154601,86610.0,86592.0,0.59761]
[1765993443916,0.50964,86611.0,86583.0,0.34359]
[1765993444200,0.01154707,86602.0,86583.0,0.34359]
[1765993444696,0.01154614,86609.0,86585.0,0.34359]
[1765993444870,0.01154641,86607.0,86584.0,0.01844157]
[1765993445080,0.01154654,86606.0,86585.0,0.31372]
[1765993445254,0.23093613,86605.0,86585.0,0.07125]
[1765993445454,0.01315954,86605.0,86585.0,0.07125]
[1765993445678,0.01154681,86604.0,86585.0,0.07125]
[1765993445919,0.00161287,86604.0,86585.0,0.07125]
[1765993446858,0.00161287,86604.0,86582.0,0.07125]
[1765993447069,0.23090947,86615.0,86580.0,0.02997001]
[1765993447070,0.01154441,86622.0,86591.0,0.01844157]
[1765993447216,0.02986454,86621.0,86593.0,0.01154827]
[1765993447417,0.02986454,86621.0,86593.0,0.00161]
[1765993447737,0.02986454,86621.0,86597.0,0.00025417]
[1765993447738,0.01832,86621.0,86597.0,0.00025417]
[1765993447991,0.01154467,86620.0,86597.0,0.00186417]
[1765993448173,0.02986454,86621.0,86597.0,0.00186417]
[1765993448412,0.07388931,86624.0,86597.0,0.00186417]
[1765993448624,0.24343798,86621.0,86597.0,0.00186417]
[1765993448833,0.01154467,86620.0,86597.0,0.00186417]
[1765993449037,0.24243867,86620.0,86597.0,0.00186417]
[1765993449215,0.001,86620.0,86592.0,0.01669768]
[1765993449453,0.24243798,86621.0,86592.0,0.01669768]
[1765993449687,0.0907,86621.0,86595.0,0.01154801]
[1765993449918,0.01154494,86618.0,86592.0,0.00514927]
[1765993450127,0.24244418,86618.0,86592.0,0.00514927]
[1765993450549,0.01315781,86618.0,86592.0,0.00514927]
[1765993450779,0.00161287,86618.0,86594.0,0.24250997]
[1765993450998,0.00161287,86618.0,86593.0,0.01154827]
[1765993451411,0.01154534,86615.0,86592.0,0.00514927]
[1765993451588,0.01154561,86613.0,86592.0,0.00514927]
[1765993451741,0.01315848,86613.0,86592.0,0.00514927]
[1765993451943,0.01154587,86611.0,86592.0,0.00514927]
[1765993452306,0.00161287,86611.0,86592.0,0.00514927]
[1765993452443,0.01315874,86611.0,86592.0,0.00514927]
[1765993452651,0.00161287,86611.0,86592.0,0.00514927]
[1765993453465,0.01154601,86610.0,86592.0,0.00514927]
[1765993453699,0.00161287,86610.0,86592.0,0.00514927]
[1765993455150,0.00161287,86610.0,86593.0,0.01832]
[1765993457535,0.24246915,86609.0,86593.0,0.01832]
[1765993457681,0.00161287,86610.0,86593.0,0.01832]
[1765993457872,0.2440792,86610.0,86593.0,0.01832]
[1765993458278,0.00161287,86610.0,86593.0,0.01832]
[1765993458903,0.00261287,86610.0,86593.0,0.01832]
[1765993459107,0.52247,86606.0,86585.0,0.0907]
[1765993459398,0.53401694,86603.0,86586.0,0.01832]
[1765993459612,0.52247,86603.0,86581.0,0.0907]
[1765993459810,0.70755,86604.0,86582.0,0.01832]
[1765993460423,0.01154627,86608.0,86582.0,0.01832]
[1765993460597,0.02728686,86610.0,86584.0,0.10224947]
[1765993460746,0.02728504,86610.0,86584.0,0.10224947]
[1765993460950,0.02728504,86610.0,86586.0,0.01154921]
[1765993460951,0.00261287,86610.0,86586.0,0.01154921]
[1765993461298,0.00261287,86610.0,86591.0,0.01844157]
[1765993461498,0.00161287,86610.0,86591.0,0.01844157]
[1765993461999,0.001,86603.0,86591.0,0.01844157]
[1765993462206,0.00161287,86610.0,86591.0,0.01844157]
[1765993462410,0.01154614,86609.0,86591.0,0.01844157]
[1765993462562,0.01154707,86602.0,86582.0,0.01832]
[1765993463176,0.23093587,86605.0,86582.0,0.01832]
[1765993463177,0.24249499,86600.0,86582.0,0.01832]
[1765993463371,0.02540621,86601.0,86582.0,0.01832]
[1765993463372,0.013859,86599.0,86582.0,0.01832]
[1765993463584,0.01154801,86595.0,86582.0,0.01832]
[1765993463783,0.2309786,86589.0,86580.0,0.0001]
[1765993463981,0.01154961,86583.0,86575.0,0.0002]
[1765993464360,0.01154961,86583.0,86572.0,4.008e-05]
[1765993464361,1.23002,86573.0,86572.0,8e-08]
[1765993464555,1.4610389,86573.0,86572.0,8e-08]
[1765993464766,1.23002,86573.0,86572.0,8e-08]
[1765993464931,0.01155107,86572.0,86551.0,0.0002]
[1765993465137,0.01155147,86569.0,86551.0,0.0002]
[1765993465457,0.01155201,86565.0,86551.0,0.0002]
[1765993465618,0.013859,86564.0,86551.0,0.0002]
[1765993465816,0.01547187,86564.0,86551.0,0.0002]
[1765993466019,0.01547187,86564.0,86522.0,0.23115508]
[1765993466020,1.0,86550.0,86522.0,0.23115508]
[1765993466296,1.0,86550.0,86524.0,0.00024]
[1765993466297,0.721409,86549.0,86524.0,0.00024]
[1765993466503,0.2310927,86546.0,86525.0,0.00024]
[1765993466708,0.2310927,86546.0,86512.0,0.01155909]
[1765993466709,0.52247,86534.0,86512.0,0.00024]
[1765993466929,1.65515959,86530.0,86512.0,0.00024]
[1765993467134,1.65515959,86530.0,86506.0,0.01832]
[1765993467135,0.013859,86529.0,86506.0,0.00370949]
[1765993467311,0.01547187,86529.0,86507.0,0.0001]
[1765993468271,0.01547187,86529.0,86510.0,0.0001]
[1765993468468,0.00151287,86529.0,86506.0,0.00370949]
[1765993468679,0.00151287,86529.0,86512.0,0.01155909]
[1765993468928,0.00151287,86529.0,86510.0,0.01155935]
[1765993469142,0.00151287,86529.0,86507.0,0.24275491]
[1765993469143,0.00151287,86529.0,86507.0,0.01155975]
[1765993469452,0.00151287,86529.0,86506.0,0.01526938]
[1765993469453,0.00151287,86529.0,86528.0,0.00219411]
[1765993470855,0.00151287,86529.0,86503.0,0.02013505]
[1765993470856,0.01155828,86518.0,86503.0,0.00437484]
[1765993471055,0.013859,86517.0,86503.0,0.00437484]
[1765993471264,0.01155895,86513.0,86503.0,0.00437484]
[1765993471468,0.01155949,86509.0,86503.0,0.00437484]
[1765993471670,0.52247,86512.0,86503.0,0.00437484]
[1765993471869,0.01155949,86509.0,86503.0,0.00437484]
[1765993472096,0.01155975,86507.0,86503.0,0.00437484]
[1765993472515,0.01155975,86507.0,86500.0,5.50046147]
[1765993472516,0.23121119,86501.0,86500.0,5.50046147]
[1765993472872,1.93876119,86501.0,86500.0,4.58740112]
[1765993473044,1.93876119,86501.0,86500.0,4.3701512]
[1765993473247,1.93876119,86501.0,86500.0,4.24777355]
[1765993473385,1.93876119,86501.0,86500.0,4.23777355]
[1765993473584,2.07266354,86501.0,86500.0,4.15777355]
[1765993473816,1.77324756,86501.0,86500.0,4.06777355]
[1765993474017,1.77324756,86501.0,86500.0,3.98777355]
[1765993474226,1.77324756,86501.0,86500.0,3.28174718]
[1765993474429,1.77324756,86501.0,86500.0,3.1481104]
[1765993474643,0.01844157,86501.0,86500.0,3.1481104]
[1765993474860,0.01155949,86509.0,86500.0,3.1481104]
[1765993475064,0.0907,86519.0,86500.0,3.1481104]
[1765993475065,0.12750157,86516.0,86500.0,3.1481104]
[1765993475277,0.01155708,86527.0,86507.0,0.69408]
[1765993475490,0.01155708,86527.0,86501.0,0.10457267]
[1765993475491,0.01844157,86523.0,86510.0,0.52324]
[1765993475692,0.01844157,86523.0,86513.0,0.69408]
[1765993475893,0.01844157,86523.0,86514.0,1.21732]
[1765993476340,0.02999919,86523.0,86514.0,1.21732]
[1765993476549,0.01844157,86523.0,86520.0,0.00025451]
[1765993476956,0.01155922,86511.0,86500.0,3.1481104]
[1765993477153,1.05537551,86510.0,86500.0,3.1481104]
[1765993477355,0.01155868,86515.0,86501.0,0.52324]
[1765993477621,0.01155895,86513.0,86502.0,1.21732]
[1765993477991,0.24273579,86514.0,86503.0,0.52324]
[1765993478141,0.01155895,86513.0,86503.0,0.52324]
[1765993478347,0.0907,86517.0,86503.0,0.52324]
[1765993478550,0.01844157,86510.0,86503.0,0.52324]
[1765993478949,0.01155815,86519.0,86505.0,0.52324]
[1765993479134,0.01155815,86519.0,86500.0,3.1481104]
[1765993479135,0.98106,86519.0,86500.0,3.1481104]
[1765993479329,1.0,86501.0,86500.0,1.39295908]
[1765993479781,1.0,86501.0,86500.0,1.02479125]
[1765993480085,1.0,86501.0,86500.0,0.80494494]
[1765993480225,0.01155989,86506.0,86501.0,0.52324]
[1765993480430,0.01155989,86506.0,86500.0,0.80494494]
[1765993480788,0.013859,86519.0,86500.0,0.80494494]
[1765993480789,0.01155895,86513.0,86501.0,0.48068]
[1765993480987,0.0907,86512.0,86501.0,0.48068]
[1765993481146,0.01155909,86512.0,86504.0,0.71781]
[1765993481344,1.03e-06,86509.0,86506.0,0.71781]
[1765993481688,1.01156002,86505.0,86500.0,4.94e-06]
[1765993481923,0.23121018,86502.0,86500.0,4.94e-06]
[1765993482175,0.013859,86501.0,86500.0,4.94e-06]
[1765993482414,0.689269,86501.0,86500.0,4.94e-06]
[1765993482608,0.67541,86501.0,86500.0,4.94e-06]
[1765993483007,0.23121018,86502.0,86500.0,0.0006414]
[1765993483302,0.23121018,86502.0,86500.0,4.94e-06]
[1765993483948,0.24276914,86503.0,86500.0,4.94e-06]
[1765993484142,0.01156015,86504.0,86500.0,4.94e-06]
[1765993484383,0.01156002,86505.0,86500.0,4.94e-06]
[1765993484595,0.001,86501.0,86500.0,4.94e-06]
[1765993484821,1.95041405,86510.0,86500.0,4.94e-06]
[1765993484822,0.01155935,86510.0,86500.0,4.94e-06]
[1765993485025,0.23118778,86510.0,86500.0,4.94e-06]
[1765993485199,0.23118778,86510.0,86500.0,0.001]
[1765993485200,0.01155989,86506.0,86500.0,0.001]
[1765993485376,0.01155975,86507.0,86497.0,0.71781]
[1765993485581,0.01155975,86507.0,86485.0,0.0002]
[1765993485582,0.23121872,86499.0,86485.0,0.0002]
[1765993485790,0.01156015,86504.0,86500.0,0.001]
[1765993486049,0.01156082,86499.0,86488.0,0.48068]
[1765993486218,0.01156149,86494.0,86487.0,0.73621]
[1765993486563,0.01844157,86490.0,86488.0,1.19849]
[1765993486981,0.01844157,86490.0,86489.0,0.48068]
[1765993487198,0.23120708,86503.0,86489.0,0.48068]
[1765993487199,0.01844157,86495.0,86489.0,0.48068]
[1765993487606,0.01844157,86495.0,86490.0,0.0184]
[1765993487759,0.01844157,86495.0,86491.0,0.48068]
[1765993487932,0.01844157,86495.0,86490.0,0.0184]
[1765993488131,0.01844157,86495.0,86471.0,0.71781]
[1765993488132,0.52424,86491.0,86471.0,0.71781]
[1765993488329,1.19965,86491.0,86472.0,0.0184]
[1765993488536,0.67541,86490.0,86472.0,0.0184]
[1765993488943,0.0907,86503.0,86480.0,0.48068]
[1765993489300,1.21809157,86499.0,86498.0,0.00070012]
[1765993489682,0.69385157,86499.0,86498.0,0.00070012]
[1765993489901,1.21809157,86499.0,86498.0,0.00070012]
[1765993490103,1.21809157,86499.0,86475.0,0.24284465]
[1765993490104,0.67541,86496.0,86488.0,0.0184]
[1765993490304,0.67692287,86496.0,86482.0,0.0184]
[1765993490683,0.67692287,86496.0,86490.0,0.00025465]
[1765993491109,0.67692287,86496.0,86482.0,0.0184]
[1765993491283,0.00151287,86496.0,86482.0,0.0184]
[1765993491490,0.00151287,86496.0,86483.0,0.49455555]
[1765993491824,0.00151287,86496.0,86483.0,0.48068]
[1765993492323,0.00151287,86496.0,86490.0,0.002]
[1765993492530,0.01844157,86501.0,86490.0,0.002]
[1765993492908,0.52424,86490.0,86465.0,0.71781]
[1765993493089,1.20116287,86490.0,86468.0,0.48068]
[1765993493291,1.20116287,86490.0,86466.0,0.0184]
[1765993493292,0.67692287,86490.0,86470.0,0.48068]
[1765993493499,0.67692287,86490.0,86466.0,0.0184]
[1765993493500,0.01156216,86489.0,86471.0,1.19849]
[1765993493698,0.01156229,86488.0,86472.0,0.48068]
[1765993493902,0.9197281,86490.0,86472.0,0.48068]
[1765993494305,0.01156229,86488.0,86472.0,0.48068]
[1765993494510,0.01156243,86487.0,86483.0,0.001]
[1765993494726,0.67541,86486.0,86473.0,0.0184]
[1765993494949,0.67541,86486.0,86465.0,0.48068]
[1765993495156,0.918224,86486.0,86472.0,0.001]
[1765993495336,0.01156269,86485.0,86466.0,0.49908]
[1765993495532,0.918224,86486.0,86466.0,0.49908]
[1765993495740,0.68697256,86486.0,86483.0,0.001]
[1765993495946,0.67541,86485.0,86466.0,0.49908]
[1765993496386,0.01156296,86483.0,86472.0,0.001]
[1765993496588,0.68697283,86484.0,86472.0,0.001]
[1765993496789,0.01156296,86483.0,86472.0,0.001]
[1765993497046,0.67541,86472.0,86453.0,0.48068]
[1765993497251,0.01156403,86475.0,86454.0,0.71781]
[1765993497665,0.24284234,86476.0,86454.0,0.71781]
[1765993497902,0.01156416,86474.0,86454.0,0.71781]
[1765993498286,0.67541,86474.0,86470.0,0.014411]
[1765993498686,0.67541,86474.0,86470.0,1e-06]
[1765993499178,0.67541,86474.0,86473.0,0.00054123]
[1765993500413,0.67541,86483.0,86473.0,0.00054123]
[1765993500609,0.0130749,86490.0,86474.0,1.21685]
[1765993500610,0.24280601,86489.0,86474.0,1.21685]
[1765993500822,0.01156229,86488.0,86474.0,0.01836]
[1765993501087,0.23125105,86487.0,86474.0,0.01836]
[1765993501277,0.67541,86483.0,86474.0,0.01836]
[1765993501471,0.67541,86483.0,86470.0,1e-06]
[1765993501472,0.24282756,86482.0,86470.0,1e-06]
[1765993501679,0.67541,86480.0,86461.0,0.48068]
[1765993501888,0.67541,86480.0,86464.0,0.01836]
[1765993502415,0.67541,86480.0,86465.0,0.48068]
[1765993502756,0.24281004,86488.0,86465.0,0.48068]
[1765993502959,0.24281004,86488.0,86464.0,0.01836]
[1765993502960,0.24281808,86485.0,86467.0,1.19849]
[1765993503160,0.01156283,86484.0,86467.0,0.71781]
[1765993503370,0.01156309,86482.0,86464.0,0.01836]
[1765993503640,1.19965,86480.0,86464.0,0.01836]
[1765993503975,0.0907,86489.0,86465.0,0.71781]
[1765993504175,0.0907,86489.0,86475.0,0.01156403]
[1765993504379,0.0246262,86501.0,86478.0,0.71781]
[1765993504849,0.67541,86502.0,86478.0,0.71781]
[1765993505029,0.67541,86502.0,86484.0,0.23125523]
[1765993505237,7.4e-07,86509.0,86495.0,0.71781]
[1765993505427,7.4e-07,86509.0,86500.0,0.48068]
[1765993505668,7.4e-07,86509.0,86492.0,0.71781]
[1765993505869,0.001,86501.0,86498.0,0.0184]
[1765993506037,0.67541,86508.0,86499.0,0.0184]
[1765993506441,0.67692287,86508.0,86488.0,0.48068]
[1765993506646,0.67692287,86508.0,86490.0,0.48068]
[1765993506848,0.14071839,86507.0,86490.0,0.48068]
[1765993507049,0.14223126,86507.0,86490.0,0.48068]
[1765993507468,0.05153126,86507.0,86492.0,0.71781]
[1765993507715,0.05153126,86507.0,86500.0,0.001]
[1765993507918,0.05153126,86507.0,86495.0,0.48068]
[1765993508118,0.05153126,86507.0,86495.0,1.19849]
[1765993509162,0.05153126,86507.0,86495.0,1.18343774]
[1765993510208,0.05153126,86507.0,86495.0,0.71781]
[1765993510826,7.4e-07,86509.0,86502.0,0.74089]
[1765993511034,0.68879,86527.0,86509.0,0.74089]
[1765993511241,0.68879,86527.0,86510.0,0.4831]
[1765993511457,0.68879,86527.0,86510.0,0.48471287]
[1765993511661,0.01155601,86535.0,86511.0,0.74089]
[1765993511863,0.24265301,86544.0,86514.0,0.23117645]
[1765993512061,0.24265301,86544.0,86515.0,0.75925]
[1765993512264,0.03081337,86555.0,86515.0,0.75925]
[1765993512265,0.01155361,86553.0,86532.0,0.74089]
[1765993512483,0.01155361,86553.0,86533.0,0.01836]
[1765993512484,0.68879,86549.0,86533.0,0.01836]
[1765993512692,0.68879,86549.0,86533.0,0.01997287]
[1765993512894,0.68879,86549.0,86542.0,0.01844157]
[1765993513095,0.68879,86556.0,86542.0,0.01844157]
[1765993513310,0.68879,86556.0,86533.0,0.01997287]
[1765993513311,0.68879,86556.0,86543.0,0.01844157]
[1765993513532,1.21339,86556.0,86543.0,0.01844157]
[1765993513802,0.68879,86555.0,86543.0,0.01844157]
[1765993514178,0.68879,86551.0,86533.0,1.24396287]
[1765993514374,0.01155361,86553.0,86521.0,0.23115704]
[1765993514375,0.002,86535.0,86527.0,0.01836]
[1765993514595,0.002,86535.0,86521.0,0.74089]
[1765993514768,0.5246,86526.0,86511.0,0.01836]
[1765993514990,0.5246,86526.0,86497.0,0.74089]
[1765993514991,0.68879,86519.0,86497.0,0.74089]
[1765993515191,0.68879,86518.0,86500.0,0.01836]
[1765993515389,0.0907,86524.0,86501.0,0.24277121]
[1765993515580,0.0907,86524.0,86502.0,0.50154157]
[1765993515788,0.0907,86524.0,86504.0,0.4831]
[1765993515987,0.10225735,86525.0,86504.0,0.4831]
[1765993516190,0.10225735,86525.0,86502.0,0.75933157]
[1765993516191,0.68879,86524.0,86502.0,0.01844157]
[1765993516397,0.0907,86525.0,86502.0,0.01844157]
[1765993516398,0.68879,86517.0,86502.0,0.01844157]
[1765993516599,0.68879,86515.0,86502.0,0.01844157]
[1765993516831,0.68879,86513.0,86502.0,1.57e-06]
[1765993517038,0.68879,86513.0,86500.0,0.0184]
[1765993517277,0.93155441,86504.0,86491.0,0.0184]
[1765993517488,0.68879,86500.0,86485.0,0.0184]
[1765993518155,0.69040287,86500.0,86485.0,0.0184]
[1765993518957,0.70196356,86500.0,86485.0,0.0184]
[1765993519169,0.70196356,86500.0,86466.0,0.23130454]
[1765993519170,0.23123295,86493.0,86470.0,0.4831]
[1765993519319,0.5246,86489.0,86468.0,0.01844157]
[1765993519530,0.68879,86488.0,86471.0,0.0184]
[1765993519733,0.69040287,86488.0,86471.0,0.0184]
[1765993520409,0.00161287,86488.0,86471.0,0.0184]
[1765993520608,0.68879,86487.0,86469.0,0.01844157]
[1765993520809,0.01156256,86486.0,86469.0,0.01844157]
[1765993521034,0.00161287,86486.0,86469.0,0.01844157]
[1765993521238,0.2427854,86497.0,86485.0,0.00161]
[1765993521460,0.001,86488.0,86485.0,0.00161]
[1765993521668,0.0907,86496.0,86485.0,0.00161]
[1765993521873,0.5246,86505.0,86485.0,0.00161]
[1765993522074,0.5246,86511.0,86488.0,0.01844157]
[1765993522274,0.01156015,86504.0,86485.0,0.00161]
[1765993522631,0.0907,86503.0,86485.0,0.00161]
[1765993522807,0.68879,86501.0,86485.0,0.00261]
[1765993523133,0.70035122,86496.0,86485.0,0.00261]
[1765993523312,0.68879,86494.0,86485.0,0.00261]
[1765993523867,0.68879,86494.0,86477.0,0.0184]
[1765993524083,0.09052599,86499.0,86480.0,0.4831]
[1765993524281,0.68879,86498.0,86477.0,0.02996376]
[1765993524509,0.5246,86497.0,86477.0,0.0184]
[1765993524707,0.68879,86496.0,86482.0,0.01844157]
[1765993524939,0.09052599,86499.0,86483.0,0.4831]